Cogmind - Beta 17 @@@ ROGUE MODE // 2026.07.05 @ 23:46:42 Player: SilverStar Result: Destroyed by H-88 Terminator with Heavy Machine Gun Performance ------------- Evolutions (9) 4500 Regions Visited (16) 3200 Robots Destroyed (21) 105 Value Destroyed (618) 618 Prototype IDs (30) 600 Alien Tech Used (1) 200 Bonus (2199) 2199 TOTAL SCORE: 11422 Bonus ------- Follower Combat Kills 399 Registered with UFD 300 Met Optimus in HQ 500 Met Warlord at Base 500 MAIN.C Attacked Warlord 500 Cogmind --------- Core Integrity 0/1600 Matter 199/300 Energy 100/100 System Corruption 1% Temperature Cool (0) Movement Core (50) Location -1/Access Parts ------- > --- POWER (2) -------- (None) > --- PROPULSION (9) --- (None) > --- UTILITY (12) ----- Machine Analyzer Improved Signal Interpreter > --- WEAPON (2) ------- (None) > --- INVENTORY (5) ---- Light Quantum Reactor Long-range Sensor Array Graphene Brace Vortex Rail (40) Vortex Rail (40) Peak State ------------ > --- POWER ------------ Quantum Reactor > --- PROPULSION ------- Field Propulsion Drive Field Propulsion Array Field Propulsion Array Q-thruster Impulse Thruster Array > --- UTILITY ---------- Advanced Cooling System Medium Storage Unit Machine Analyzer Enhanced Optical Array Long-range Sensor Array Improved Signal Interpreter Experimental Terrain Scan Processor Advanced Reaction Control System Layered Medium Armor Plating > --- WEAPON ----------- Heavy Mace > --- INVENTORY -------- Light Quantum Reactor Long-range Sensor Array Graphene Brace Advanced Shield Generator Minesniffer Drone Bay Vortex Rail Vortex Rail Enhanced Hardcell Cannon Heavy Shock Bomb Launcher Improved Plasma Cutter [Rating: 122] Favorites ----------- Power Light Angular Momentum Engine Engine Light Angular Momentum Engine Reactor Quantum Reactor Propulsion Field Propulsion Array Treads Light Treads Wheel Armored Wheel Flight Unit Field Propulsion Array Utility Experimental Terrain Scan Processor Device Long-range Sensor Array Storage Medium Storage Unit Processor Experimental Terrain Scan Processor Protection Medium Regenerative Plating Weapon Heavy Mace Energy Gun Medium Laser Energy Cannon Compact Ion Cannon Ballistic Gun Heavy Battle Rifle Ballistic Cannon Enhanced Hardcell Cannon Launcher Heavy Shock Bomb Launcher Special Weapon Improved Plasma Cutter Impact Weapon Heavy Mace Slashing Weapon Greatsword Build | -11 -10 -10 -7 -7 -5 -5 -4 -4 -4 -4 -4 -4 -3 -3 -2 -1 ------- Run | Yrd Mat Sub Rec Scr Fac Ext Fac Was Fac Upp Upp War Pro Res Res Acc Slots Evolved 18 | . . . . . 10 . 2 . . . . . . 2 2 2 Power 1 | . . . . . . . . . . . . . . 1 . . Propulsion 7 | . . . . . 3 . 1 . . . . . . 1 1 1 Utility 10 | . . . . . 7 . 1 . . . . . . . 1 1 Weapon . | . . . . . . . . . . . . . . . . . Parts Attached 64 | 9 1 9 5 5 2 2 4 2 6 1 2 2 5 3 3 3 Power 6 | 1 . 2 . 1 . . 1 . . . . . . . 1 . Engine 5 | 1 . 2 . 1 . . 1 . . . . . . . . . Core . | . . . . . . . . . . . . . . . . . Reactor 1 | . . . . . . . . . . . . . . . 1 . Propulsion 16 | 3 . 1 2 1 . 1 1 1 . . . . 2 1 . 3 Treads 2 | 2 . . . . . . . . . . . . . . . . Leg . | . . . . . . . . . . . . . . . . . Wheel 2 | 1 . 1 . . . . . . . . . . . . . . Hover . | . . . . . . . . . . . . . . . . . Flight 12 | . . . 2 1 . 1 1 1 . . . . 2 1 . 3 Utility 26 | 2 . 3 2 2 2 1 2 1 3 . 2 1 2 2 1 . Device 15 | 1 . 2 1 . . . 2 1 2 . 2 1 . 2 1 . Storage 2 | 1 . . . . . . . . 1 . . . . . . . Processor 4 | . . . . 1 2 . . . . . . . 1 . . . Hackware . | . . . . . . . . . . . . . . . . . Protection 5 | . . 1 1 1 . 1 . . . . . . 1 . . . Artifact . | . . . . . . . . . . . . . . . . . Weapon 16 | 3 1 3 1 1 . . . . 3 1 . 1 1 . 1 . Energy Gun 4 | 1 1 1 . . . . . . . . . 1 . . . . Energy Cannon 2 | . . . . . . . . . 2 . . . . . . . Ballistic Gun 1 | 1 . . . . . . . . . . . . . . . . Ballistic Cannon 1 | . . . . . . . . . . . . . . . 1 . Launcher 2 | . . 1 . . . . . . . . . . 1 . . . Special Weapon 2 | 1 . . . . . . . . 1 . . . . . . . Impact Weapon 3 | . . 1 . 1 . . . . . 1 . . . . . . Slashing Weapon 1 | . . . 1 . . . . . . . . . . . . . Piercing Weapon . | . . . . . . . . . . . . . . . . . Special Melee Weapon . | . . . . . . . . . . . . . . . . . Unidentified Prototypes 8 | . . 1 . . . 1 . . 1 . . 2 1 1 1 . Parts Lost 38 | . 2 8 1 . . 4 . . . . . 2 3 2 1 15 Power 3 | . . 2 . . . . . . . . . . 1 . . . Propulsion 14 | . . 2 1 . . 2 . . . . . . 1 1 . 7 Utility 15 | . 1 2 . . . 1 . . . . . 2 1 1 1 6 Weapon 6 | . 1 2 . . . 1 . . . . . . . . . 2 Highest Loss Streak 15 | . 2 4 1 . . 2 . . . . . 2 3 1 1 15 To Critical Strikes . | . . . . . . . . . . . . . . . . . Average Backups 6 | 5 7 6 2 4 3 5 4 3 5 7 8 8 8 8 8 9 Power . | . 1 . . . 1 1 . . . . . . . . . . Propulsion . | 1 2 1 . . . . . . . . . . . . . . Utility 3 | . 2 2 . 2 1 2 1 1 2 3 3 4 4 4 4 4 Weapon 2 | 1 2 3 2 2 1 1 2 2 3 4 5 4 3 3 3 3 Tool/Special . | . . . . . . . . . . . . . . . . . Unused Backups 14 | . . 1 . 2 . 3 . . . . . 2 . . 1 5 Power 2 | . . . . . . 1 . . . . . . . . . 1 Propulsion . | . . . . . . . . . . . . . . . . . Utility 8 | . . . . 2 . 2 . . . . . . . . 1 3 Weapon 4 | . . 1 . . . . . . . . . 2 . . . 1 Tool/Special . | . . . . . . . . . . . . . . . . . Average Slot Usage (%) 62 | . 89 75 30 55 39 41 26 52 68 73 77 76 63 64 64 50 Engine 5 | . 14 5 . 11 . . . 5 5 5 5 5 . . . . Treads 2 | . 28 5 . . . . . . . . . . . . . . Wheel 1 | . . 10 . . . . . . . . . . . . . . Flight 14 | . . . 9 25 11 8 6 12 15 15 15 15 20 20 16 13 Device 11 | . 5 10 12 14 5 3 2 12 15 15 20 21 10 11 12 9 Storage 4 | . 14 14 . . . . . . 4 5 5 5 5 4 4 3 Processor 9 | . . . . 1 10 17 15 15 15 15 15 15 15 19 17 14 Protection 3 | . . . 1 2 4 3 . 5 5 5 5 5 5 4 4 3 Energy Gun 2 | . 21 10 . . . . . . . . . . . . . . Ballistic Gun 1 | . . 12 . . . . . . . . . . . . . . Special Weapon 1 | . 5 . . . . . . . 2 5 5 3 . . . . Impact Weapon 2 | . . 4 . . 5 5 . . . 2 5 5 4 4 4 3 Peak Build Rating 122 | 7 8 26 25 25 33 40 56 79 100 95 104 113 90 101 113 122 Average Rating 49 | 6 7 16 10 15 27 30 30 71 89 93 102 101 81 91 103 89 On Entrance 52 | . 7 7 2 8 21 33 23 56 79 95 93 104 82 84 90 106 Avg Prop Armor Cover (%) 5 | . . . 12 . . . . . . . . . 5 6 5 . Naked Turns 16 | . . 4 12 . . . . . . . . . . . . . Heaviest Build 48 | 12 12 25 6 10 8 8 20 23 39 39 41 41 39 27 48 48 Greatest Support 65 | 40 40 40 6 10 10 10 22 37 41 41 41 41 47 32 49 65 Greatest Overweight (x) 6 | . . 2 . . . 1 . . . . . . . . . 6 Average Overweight (x) . | . . . . . . . . . . . . . . . . . Largest Inventory Capacity 10 | 8 8 8 5 5 5 5 5 5 10 10 10 10 10 10 10 10 Average Capacity 7 | 7 8 7 5 5 5 5 5 5 9 10 10 10 10 10 10 9 Most Carried 10 | 7 8 8 5 5 5 5 5 3 8 9 10 10 10 10 10 10 Average Carried 7 | 5 7 7 2 4 3 4 4 3 6 8 9 9 8 8 8 9 Final Capacity 10 | 8 8 5 5 5 5 5 5 5 10 10 10 10 10 10 10 5 Final Carried 10 | 7 8 5 5 5 5 5 3 3 8 9 10 8 8 10 10 5 Transmogrified Parts 7 | . . 7 . . . . . . . . . . . . . . Integrity Recovered 75 | . . 75 . . . . . . . . . . . . . . Class Distribution -------------------- 52% | Mutant 31% | Scout 15% | Derelict-Scout Dominant Class ---------------- Mutant | -10/Materials Mutant | -10/Subcaves Mutant | -7/Recycling Mutant | -7/Scraptown Mutant | -5/Factory Scout | -5/Extension Mutant | -4/Factory Mutant | -4/Waste Scout | -4/Factory Scout | -4/Upper Caves Scout | -4/Upper Caves Scout | -4/Warlord Scout | -3/Proximity Caves Derelict-Scout | -3/Research Derelict-Scout | -2/Research Derelict-Scout | -1/Access Resources | -11 -10 -10 -7 -7 -5 -5 -4 -4 -4 -4 -4 -4 -3 -3 -2 -1 ----------- Run | Yrd Mat Sub Rec Scr Fac Ext Fac Was Fac Upp Upp War Pro Res Res Acc Matter Collected 1090 | 290 . 142 198 50 . 60 . . . 90 101 . 82 45 . 32 Remotely . | . . . . . . . . . . . . . . . . . Salvage Created 679 | 115 55 239 . . . 72 . . . . . . 75 30 . 93 Parts 34 | 9 1 14 . . . . . . . . . . 7 . . 3 Haulers Intercepted . | . . . . . . . . . . . . . . . . . Recyclers Shooed 1 | 1 . . . . . . . . . . . . . . . . Parts Field Recycled . | . . . . . . . . . . . . . . . . . Retrieved Matter . | . . . . . . . . . . . . . . . . . Parts Self-Destructed 28 | . . 23 . . . . . . . . . . 5 . . . Prevented 6 | . . . . . . . . . . 4 . . 2 . . . Parts Restored . | . . . . . . . . . . . . . . . . . Kills | -11 -10 -10 -7 -7 -5 -5 -4 -4 -4 -4 -4 -4 -3 -3 -2 -1 ------- Run | Yrd Mat Sub Rec Scr Fac Ext Fac Was Fac Upp Upp War Pro Res Res Acc Combat Hostiles Destroyed 12 | . 2 7 . . . . . . . . . . 2 . . 1 Guns 8 | . 2 6 . . . . . . . . . . . . . . Cannons 1 | . . . . . . . . . . . . . . . . 1 AOE 2 | . . . . . . . . . . . . . 2 . . . Classes Destroyed 7 | 2 1 3 . . . 1 . . . . . . . . . . Tunneler 3 | 3 . . . . . . . . . . . . . . . . Recycler 1 | 1 . . . . . . . . . . . . . . . . Watcher 5 | . . . . . . 2 . . . . . . . 1 . 2 Swarmer 6 | . . 3 . . . . . . . . . . 2 . . 1 Grunt 3 | . 2 1 . . . . . . . . . . . . . . Sentry 1 | . . 1 . . . . . . . . . . . . . . Subdweller 2 | . . 2 . . . . . . . . . . . . . . Best Kill Streak 3 | 1 2 3 . . . 2 . . . . . . 2 1 . 1 Combat Bots Only 3 | . 2 3 . . . . . . . . . . 2 . . 1 Max Kills in Single Turn 2 | 1 1 1 . . . 1 . . . . . . 2 1 . 1 Gunslinging . | . . . . . . . . . . . . . . . . . Exploded 2 | . . . . . . . . . . . . . 2 . . . Melee . | . . . . . . . . . . . . . . . . . Uniques/NPCs Destroyed . | . . . . . . . . . . . . . . . . . Combat | -11 -10 -10 -7 -7 -5 -5 -4 -4 -4 -4 -4 -4 -3 -3 -2 -1 -------- Run | Yrd Mat Sub Rec Scr Fac Ext Fac Was Fac Upp Upp War Pro Res Res Acc Hostile Shots Fired 588 | . 17 113 31 2 6 56 2 . . 6 10 2 18 42 . 283 Missed 267 | . 3 48 19 . 6 30 1 . . 1 9 . 8 20 . 122 Hits 321 | . 14 65 12 2 . 26 1 . . 5 1 2 10 22 . 161 Projectile 321 | . 14 65 12 2 . 26 1 . . 5 1 2 10 22 . 161 AOE 2 | . . . . . . . . . . . . 2 . . . . Critical Strikes 12 | . . 2 . . . 2 . . . 1 . . . 1 . 6 Part Disruptions 1 | . . . . . . . . . . 1 . . . . . . Damage Taken 6326 | . 197 1024 142 19 . 494 19 . . 38 53 136 673 473 . 3058 Core 2408 | . 23 105 100 10 . 358 . . . . . 36 24 148 . 1604 Absorbed by Shields 11 | . . . . . . 11 . . . . . . . . . . Regen/Repaired (Parts) 148 | . . . . . . . 7 15 73 . 18 10 25 . . . Core Remaining (%) 75 | 100 . . . 4 . 64 . . . . . . 94 88 100 . Volleys Fired 90 | 9 23 42 . . . . . . 8 . . . 2 . . 6 Largest 2 | 2 2 2 . . . . . . 1 . . . 1 . . 1 Hottest 150 | 150 150 90 . . . . . . 90 . . . 46 . . 58 Shots Fired 123 | 12 25 69 . . . . . . 8 1 . . 2 . . 6 Gun 91 | 9 13 69 . . . . . . . . . . . . . . Cannon 15 | . . . . . . . . . 8 1 . . . . . 6 Launcher 2 | . . . . . . . . . . . . . 2 . . . Special 15 | 3 12 . . . . . . . . . . . . . . . Kinetic 44 | . . 38 . . . . . . . . . . . . . 6 Thermal 57 | 12 25 11 . . . . . . 8 1 . . . . . . Explosive . | . . . . . . . . . . . . . . . . . Electromagnetic 22 | . . 20 . . . . . . . . . . 2 . . . Robot Hit Streak 13 | 4 9 13 . . . . . . . . . . . . . 2 Robot Miss Streak 5 | 1 2 2 . . . . . . . . . . 1 . . 5 Penetration Max . | . . . . . . . . . . . . . . . . . Secondary Targets 2 | . . 2 . . . . . . . . . . . . . . Max Gunslinging Chain 1 | . . 1 . . . . . . . . . . . . . . Shots Hit Robots 64 | 8 12 37 . . . 2 . . . . . . . 1 . 4 Core Hits 23 | 4 5 10 . . . . . . . . . . 3 . . 1 Critical Kills . | . . . . . . . . . . . . . . . . . Critical Parts Destroyed 3 | . . 1 . . . . . . . . . . . . . 2 Critical Strikes 6 | . 1 3 . . . . . . . . . . . . . 2 Burn 3 | . 1 2 . . . . . . . . . . . . . . Destroy 1 | . . 1 . . . . . . . . . . . . . . Smash 2 | . . . . . . . . . . . . . . . . 2 Melee Attacks 73 | . . 4 . 2 7 2 . . . . 1 . 6 4 17 30 Impact 73 | . . 4 . 2 7 2 . . . . 1 . 6 4 17 30 Slashing . | . . . . . . . . . . . . . . . . . Piercing . | . . . . . . . . . . . . . . . . . Sneak Attacks . | . . . . . . . . . . . . . . . . . Combat Hostiles . | . . . . . . . . . . . . . . . . . Follow-up Attacks . | . . . . . . . . . . . . . . . . . Damage Inflicted 1415 | 109 160 530 . . . 125 . . . . . . 113 47 . 331 Guns 689 | 85 136 468 . . . . . . . . . . . . . . Cannons 173 | . . . . . . . . . . . . . . . . 173 Explosions 175 | . . 62 . . . . . . . . . . 113 . . . Melee 330 | . . . . . . 125 . . . . . . . 47 . 158 Ramming . | . . . . . . . . . . . . . . . . . Kinetic 350 | . . 177 . . . . . . . . . . . . . 173 Thermal 442 | 109 160 173 . . . . . . . . . . . . . . Explosive . | . . . . . . . . . . . . . . . . . Electromagnetic 293 | . . 180 . . . . . . . . . . 113 . . . Impact 330 | . . . . . . 125 . . . . . . . 47 . 158 Slashing . | . . . . . . . . . . . . . . . . . Piercing . | . . . . . . . . . . . . . . . . . Highest Corruption 10 | . . 7 7 7 . . . 10 10 10 10 10 . . . 1 Average Corruption 9 | . . 7 7 7 . . . 10 10 10 10 10 . . . 1 Corruption Purged . | . . . . . . . . . . . . . . . . . Corruption Blocked . | . . . . . . . . . . . . . . . . . Effects 38 | . . . 4 . . . . 2 7 6 16 2 . . . 1 Message Errors 10 | . . . 2 . . . . 1 3 1 3 . . . . . Matter Fused 7 | . . . 1 . . . . . 1 . 4 . . . . 1 Heat Flow Errors 2 | . . . . . . . . . . 1 . 1 . . . . Energy Discharges 7 | . . . 1 . . . . . . 2 3 1 . . . . Parts Rejected 1 | . . . . . . . . . . . 1 . . . . . Data Loss (minor) 3 | . . . . . . . . . 2 . 1 . . . . . Data Loss (major) 2 | . . . . . . . . . 1 . 1 . . . . . Misfires 1 | . . . . . . . . . . 1 . . . . . . Alerts 3 | . . . . . . . . . . 1 2 . . . . . Misdirections 2 | . . . . . . . . 1 . . 1 . . . . . Overload Shots . | . . . . . . . . . . . . . . . . . Overflow Damage 221 | . . . . . . 40 . . . . . . . 23 . 158 Projectiles . | . . . . . . . . . . . . . . . . . Explosions . | . . . . . . . . . . . . . . . . . Melee 221 | . . . . . . 40 . . . . . . . 23 . 158 Knockbacks 3 | . . . . . . 1 . . . . . . . . . 2 Impact 2 | . . . . . . 1 . . . . . . . . . 1 Kinetic 1 | . . . . . . . . . . . . . . . . 1 Secondary . | . . . . . . . . . . . . . . . . . Self-Inflicted Damage . | . . . . . . . . . . . . . . . . . Shots . | . . . . . . . . . . . . . . . . . Rammed . | . . . . . . . . . . . . . . . . . Targets Rammed . | . . . . . . . . . . . . . . . . . Kicked . | . . . . . . . . . . . . . . . . . Crushed . | . . . . . . . . . . . . . . . . . Highest Temperature 321 | 50 321 . . . . . . . 183 270 . 201 . 32 . . Average Temperature 89 | 23 109 . . . . . . . 73 121 . 108 . 18 . . Received Heat Transfer 779 | . 111 213 12 . . 194 . . . 60 . . 9 108 . 72 Siege Activations . | . . . . . . . . . . . . . . . . . Martial Activations . | . . . . . . . . . . . . . . . . . Shielding Activations . | . . . . . . . . . . . . . . . . . Robots Disrupted . | . . . . . . . . . . . . . . . . . Combat Hostiles . | . . . . . . . . . . . . . . . . . Robots Corrupted 5 | . . 1 . . . 2 . . . . . . . 1 . 1 Combat Hostiles 1 | . . 1 . . . . . . . . . . . . . . Parts Fried 6 | . . 1 . . . 2 . . . . . . . 1 . 2 Impact Corruptions 7 | . . . . . . 3 . . . . . . . 1 . 3 Robots Melted . | . . . . . . . . . . . . . . . . . Combat Hostiles . | . . . . . . . . . . . . . . . . . Parts Melted 2 | . 1 1 . . . . . . . . . . . . . . Heat Transferred 1371 | 309 531 531 . . . . . . . . . . . . . . Parts Sabotaged . | . . . . . . . . . . . . . . . . . Parts Stolen . | . . . . . . . . . . . . . . . . . Parts Stripped . | . . . . . . . . . . . . . . . . . Power Chain Reactions 1 | . . 1 . . . . . . . . . . . . . . Alert | -11 -10 -10 -7 -7 -5 -5 -4 -4 -4 -4 -4 -4 -3 -3 -2 -1 ------- Run | Yrd Mat Sub Rec Scr Fac Ext Fac Was Fac Upp Upp War Pro Res Res Acc Maximum Alert Level . | . . . . . . . . . . . . . . . . . Low Security (%) 100 | 100 100 . 100 . 100 100 100 100 100 . . . . 100 100 100 Level 1 . | . . . . . . . . . . . . . . . . . Level 2 . | . . . . . . . . . . . . . . . . . Level 3 . | . . . . . . . . . . . . . . . . . Level 4 . | . . . . . . . . . . . . . . . . . Level 5 . | . . . . . . . . . . . . . . . . . High Security . | . . . . . . . . . . . . . . . . . Max Security . | . . . . . . . . . . . . . . . . . Peak Influence 159 | 5 31 . 58 . 39 159 2 . 15 . . . . 131 32 74 Initial 40 | . . . 40 . . 18 2 . . . . . . 20 24 1 Average 22 | 1 2 . 31 . 5 52 . . 1 . . . . 63 6 19 Influence Increases 1535 | 20 59 190 108 . 51 345 . . 35 . . . 125 224 68 310 Destroy 0b10 Robot/C 380 | . 40 100 . . . 180 . . . . . . 40 . . 20 Destroy 0b10 Robot/NC 45 | 20 . . . . . 10 . . . . . . . 5 . 10 Destroy Leader 40 | . 10 . . . . 14 . . . . . . 10 2 . 4 Allied During Kill 52 | . . . . . . 52 . . . . . . . . . . Successful Hack 71 | . . . 18 . . 14 . . 12 . . . . 16 11 . Disable Machine 15 | . . . . . . . . . . . . . . . . 15 Destroy Structure 137 | . 9 . . . 6 . . . 8 . . . . 6 42 66 Partial Spotted 135 | . . . 30 . . . . . 15 . . . . 30 15 45 Lose Combat Pursuer 660 | . . 90 60 . 45 75 . . . . . . 75 165 . 150 Influence Decreases 1471 | 20 59 106 144 48 12 377 7 . 20 15 . . 95 210 109 249 Entered New Map 156 | . . . 44 48 . 21 5 . . 6 . . . 10 20 2 Time Decay 991 | 20 49 76 90 . 12 216 2 . 20 9 . . 85 170 89 153 Lost Part 214 | . 10 30 10 . . 40 . . . . . . 10 20 . 94 Lost Ally 110 | . . . . . . 100 . . . . . . . 10 . . Squads Dispatched 12 | . . . . . 1 2 . . 1 . . . . 3 1 4 Investigation 5 | . . . . . . 2 . . 1 . . . . 1 . 1 Extermination 4 | . . . . . . . . . . . . . . 1 1 2 Reinforcement 3 | . . . . . 1 . . . . . . . . 1 . 1 Assault . | . . . . . . . . . . . . . . . . . Garrison . | . . . . . . . . . . . . . . . . . Intercept . | . . . . . . . . . . . . . . . . . Searches Triggered . | . . . . . . . . . . . . . . . . . Construction Impeded . | . . . . . . . . . . . . . . . . . Haulers Reinforced . | . . . . . . . . . . . . . . . . . Active Scanning Responses . | . . . . . . . . . . . . . . . . . Cargo Convoy Interrupts . | . . . . . . . . . . . . . . . . . Stealth | -11 -10 -10 -7 -7 -5 -5 -4 -4 -4 -4 -4 -4 -3 -3 -2 -1 --------- Run | Yrd Mat Sub Rec Scr Fac Ext Fac Was Fac Upp Upp War Pro Res Res Acc Distress Signals 7 | . . . . . 1 2 . . . . . . . 1 . 3 Communications Jammed . | . . . . . . . . . . . . . . . . . Distress Signals . | . . . . . . . . . . . . . . . . . Times Spotted 132 | . 2 13 5 5 9 22 1 4 . 1 5 4 11 21 1 28 Peak Tracking Total 18 | . 2 6 4 3 7 9 2 4 . 1 5 4 6 7 1 18 Tactical Retreats 24 | . . 3 3 1 1 4 . . . 1 . . 2 3 . 6 Traps | -11 -10 -10 -7 -7 -5 -5 -4 -4 -4 -4 -4 -4 -3 -3 -2 -1 ------- Run | Yrd Mat Sub Rec Scr Fac Ext Fac Was Fac Upp Upp War Pro Res Res Acc Traps Triggered 6 | . . . . . . 4 1 . 1 . . . . . . . Indirectly . | . . . . . . . . . . . . . . . . . Trap Hack Attempts . | . . . . . . . . . . . . . . . . . Triggered . | . . . . . . . . . . . . . . . . . Disarmed . | . . . . . . . . . . . . . . . . . Reprogrammed . | . . . . . . . . . . . . . . . . . Reused . | . . . . . . . . . . . . . . . . . Traps Extracted . | . . . . . . . . . . . . . . . . . Installed . | . . . . . . . . . . . . . . . . . Triggered . | . . . . . . . . . . . . . . . . . Machines | -11 -10 -10 -7 -7 -5 -5 -4 -4 -4 -4 -4 -4 -3 -3 -2 -1 ---------- Run | Yrd Mat Sub Rec Scr Fac Ext Fac Was Fac Upp Upp War Pro Res Res Acc Machines Disabled 4 | . . 2 . . . . . . . . . . 1 . . 1 Max in Single Turn 1 | . . 1 . . . . . . . . . . 1 . . 1 Machines Repaired . | . . . . . . . . . . . . . . . . . Machines Dismantled 1 | . . . . . . . . . . . . . 1 . . . Machines Sabotaged . | . . . . . . . . . . . . . . . . . Overloaded Fab Kills . | . . . . . . . . . . . . . . . . . Hacking | -11 -10 -10 -7 -7 -5 -5 -4 -4 -4 -4 -4 -4 -3 -3 -2 -1 --------- Run | Yrd Mat Sub Rec Scr Fac Ext Fac Was Fac Upp Upp War Pro Res Res Acc Machines Accessed 55 | . 2 1 6 10 1 5 3 . 2 . . 8 1 6 5 5 Terminals 21 | . 1 . 4 . 1 5 1 . . . . . . 2 4 3 Fabricators 1 | . . . . . . . . . . . . . . 1 . . Repair Stations 1 | . . . . . . . 1 . . . . . . . . . Recycling Units 3 | . 1 . . . . . . . 1 . . . . . . 1 Scanalyzers 5 | . . . . . . . 1 . 1 . . . . 2 1 . Garrison Access 2 | . . . . . . . . . . . . . . 1 . 1 Total Hacks 163 | . 3 9 34 67 1 7 4 . 3 . . 9 1 7 12 6 Successful 127 | . . 9 26 67 1 3 2 . 2 . . 9 1 1 6 . Failed 35 | . 3 . 8 . . 4 2 . 1 . . . . 6 5 6 Catastrophic 17 | . 2 . 5 . . 1 1 . . . . . . 3 1 4 Database Lockouts 1 | . . . . . . . . . . . . . . . 1 . Manual 27 | . 4 . 6 . . . 1 . 2 . . . . 6 7 1 Terminals 37 | . 2 . 9 . 1 7 2 . . . . . . 3 9 4 Fabricators 1 | . . . . . . . . . . . . . . 1 . . Repair Stations 1 | . . . . . . . 1 . . . . . . . . . Recycling Units 4 | . 1 . . . . . . . 2 . . . . . . 1 Scanalyzers 7 | . . . . . . . 1 . 1 . . . . 2 3 . Garrison Access 2 | . . . . . . . . . . . . . . 1 . 1 Terminal Hacks 121 | . . 9 26 67 1 3 1 . . . . 9 1 . 4 . Record 112 | . . 8 24 67 . . 1 . . . . 7 1 . 4 . Robot Analysis 1 | . . . 1 . . . . . . . . . . . . . Open Door 6 | . . . . . 1 3 . . . . . 2 . . . . Proto ID Catalog 1 | . . 1 . . . . . . . . . . . . . . Release Object 1 | . . . 1 . . . . . . . . . . . . . Fabricator Hacks . | . . . . . . . . . . . . . . . . . Repair Station Hacks . | . . . . . . . . . . . . . . . . . Recycling Unit Hacks . | . . . . . . . . . . . . . . . . . Scanalyzer 2 | . . . . . . . 1 . 1 . . . . . . . Retrieve Study 2 | . . . . . . . 1 . 1 . . . . . . . Garrison Access Hacks . | . . . . . . . . . . . . . . . . . Unauthorized Hacks 4 | . . . . . . . . . 1 . . . . 1 2 . Terminals 2 | . . . . . . . . . . . . . . 1 1 . Assimilate 2 | . . . . . . . . . . . . . . 1 1 . Fabricators . | . . . . . . . . . . . . . . . . . Repair Stations . | . . . . . . . . . . . . . . . . . Recycling Units 1 | . . . . . . . . . 1 . . . . . . . Fedlink 1 | . . . . . . . . . 1 . . . . . . . Scanalyzers 1 | . . . . . . . . . . . . . . . 1 . Researchers 1 | . . . . . . . . . . . . . . . 1 . Garrison Access . | . . . . . . . . . . . . . . . . . Data Cores Recovered . | . . . . . . . . . . . . . . . . . Used . | . . . . . . . . . . . . . . . . . Hacking Detections 28 | . 2 . 4 . 1 3 2 . 1 . . . . 6 4 5 Full Trace Events 4 | . . . 1 . . 1 . . . . . . . 1 . 1 Feedback Events . | . . . . . . . . . . . . . . . . . Feedback Blocked . | . . . . . . . . . . . . . . . . . Robot Schematics Acquired . | . . . . . . . . . . . . . . . . . Robots Built . | . . . . . . . . . . . . . . . . . Authchips . | . . . . . . . . . . . . . . . . . Time . | . . . . . . . . . . . . . . . . . Total Robot Build Rating . | . . . . . . . . . . . . . . . . . Part Schematics Acquired . | . . . . . . . . . . . . . . . . . Parts Built . | . . . . . . . . . . . . . . . . . Authchips . | . . . . . . . . . . . . . . . . . Time . | . . . . . . . . . . . . . . . . . Total Part Build Rating . | . . . . . . . . . . . . . . . . . Part Studies Acquired 2 | . . . . . . . 1 . 1 . . . . . . . Parts Repaired . | . . . . . . . . . . . . . . . . . Time . | . . . . . . . . . . . . . . . . . Parts Recycled . | . . . . . . . . . . . . . . . . . Recycled Matter . | . . . . . . . . . . . . . . . . . Retrieved Matter . | . . . . . . . . . . . . . . . . . Retrieved Components . | . . . . . . . . . . . . . . . . . Parts Scanalyzed . | . . . . . . . . . . . . . . . . . Part Schematics Acquired . | . . . . . . . . . . . . . . . . . Parts Damaged . | . . . . . . . . . . . . . . . . . Bothacking | -11 -10 -10 -7 -7 -5 -5 -4 -4 -4 -4 -4 -4 -3 -3 -2 -1 ------------ Run | Yrd Mat Sub Rec Scr Fac Ext Fac Was Fac Upp Upp War Pro Res Res Acc Used RIF Installer . | . . . . . . . . . . . . . . . . . Robots Hacked . | . . . . . . . . . . . . . . . . . Non-combat . | . . . . . . . . . . . . . . . . . Combat . | . . . . . . . . . . . . . . . . . Robot Hacks Applied . | . . . . . . . . . . . . . . . . . Relay Couplers Released . | . . . . . . . . . . . . . . . . . Fabnet Peak Effective % . | . . . . . . . . . . . . . . . . . Robots Rewired . | . . . . . . . . . . . . . . . . . Allies Hacked . | . . . . . . . . . . . . . . . . . Hacks Repelled . | . . . . . . . . . . . . . . . . . Allies | -11 -10 -10 -7 -7 -5 -5 -4 -4 -4 -4 -4 -4 -3 -3 -2 -1 -------- Run | Yrd Mat Sub Rec Scr Fac Ext Fac Was Fac Upp Upp War Pro Res Res Acc Total Allies 8 | . . . . . . 5 . 1 . . . . . 1 1 . Largest Group 5 | . . . . . . 5 . 1 . . . . . 1 1 . Highest-Rated Group 215 | . . . . . . 215 . 46 . . . . . 26 10 . Highest-Rated Ally 159 | . . . . . . 159 . 46 . . . . . 26 10 . Initial UFD Resources 58 | . . . . . 37 37 39 39 39 49 49 49 51 51 54 58 Total Orders 2 | . . . . . . . . . . . . . . . 1 1 STAY 1 | . . . . . . . . . . . . . . . 1 . RETURN 1 | . . . . . . . . . . . . . . . . 1 Ally Attacks 59 | . . . . . . 52 . 7 . . . . . . . . Total Damage 1456 | . . . . . . 1299 . 157 . . . . . . . . Kills 9 | . . . . . . 9 . . . . . . . . . . Allies Corrupted . | . . . . . . . . . . . . . . . . . Allies Melted 2 | . . . . 2 . . . . . . . . . . . . Intel | -11 -10 -10 -7 -7 -5 -5 -4 -4 -4 -4 -4 -4 -3 -3 -2 -1 ------- Run | Yrd Mat Sub Rec Scr Fac Ext Fac Was Fac Upp Upp War Pro Res Res Acc Active Infowar (turns) 6178 | 123 231 56 179 1757 139 465 66 31 187 239 397 288 724 401 336 559 Optics 3635 | . . . . . 12 465 66 31 187 239 397 288 724 401 336 489 Sensors 2003 | . . . . . . . 5 31 187 239 397 288 44 49 313 450 Terrain 3129 | . . . 179 1757 139 326 . . . . 394 288 13 33 . . Seismic 928 | 123 231 56 . . . . 30 31 187 239 31 . . . . . Machine Analysis 1407 | . . . . . . . . . . . . . 111 401 336 559 Robot Analysis Total 1 | . . . 1 . . . . . . . . . . . . . Derelict Logs Recovered 3 | . . . . . . . . . . 2 1 . . . . . Drone Launches 1 | . . . . . . . . . . . . . . . . 1 Drone Recoveries 1 | . . . . . . . . . . . . . . . . 1 Exploration | -11 -10 -10 -7 -7 -5 -5 -4 -4 -4 -4 -4 -4 -3 -3 -2 -1 ------------- Run | Yrd Mat Sub Rec Scr Fac Ext Fac Was Fac Upp Upp War Pro Res Res Acc Turns Passed 7306 | 220 590 715 192 1757 139 465 66 31 187 239 397 288 724 401 336 559 Spaces Moved 8616 | 110 165 537 409 1896 241 610 150 81 418 583 430 729 511 424 538 784 Core 237 | 3 . 7 123 . . 5 . . . . . . . . . 99 Treads 328 | 107 165 56 . . . . . . . . . . . . . . Legs . | . . . . . . . . . . . . . . . . . Wheels 474 | . . 474 . . . . . . . . . . . . . . Hover . | . . . . . . . . . . . . . . . . . Flight 7577 | . . . 286 1896 241 605 150 81 418 583 430 729 511 424 538 685 Fastest Speed 30 | 50 160 50 40 34 34 34 37 34 34 34 34 34 31 35 32 30 Average Speed 43 | 157 160 105 43 36 34 37 39 34 34 34 34 34 33 36 32 35 Slowest Speed 350 | 160 160 160 50 40 34 120 40 37 34 34 34 34 37 39 35 350 Overloaded Moves . | . . . . . . . . . . . . . . . . . Propulsion Burnouts . | . . . . . . . . . . . . . . . . . Robots Hopped 49 | . . . . . 8 26 . . 4 . . . . 8 1 2 Potential Cave-ins 2 | . 2 . . . . . . . . . . . . . . . Cave-ins Triggered 1 | . . 1 . . . . . . . . . . . . . . Exploration Rate (%) 44 | 4 26 23 74 91 7 69 5 83 15 71 76 92 71 16 13 21 Regions Visited 16 Branch Regions 8 Pre-discovered Areas 2 | . . . . 1 . . . . . 1 . . . . . . Known Exits Taken 9 | . . . . . 1 1 . . 1 1 1 1 1 1 1 . Unknown Exits Taken 5 | 1 1 1 1 1 . . . . . . . . . . . . Scrap Searched 18 | . . 2 . 6 . . . . . 2 3 . 5 . . . Spaces Dug 66 | . 10 5 . . 3 . . . 5 . 1 . 4 3 14 21 Terrain Destroyed 74 | . 11 10 . . 3 . . . 5 1 1 . 4 3 14 22 Melee 49 | . . 3 . . 3 . . . . . 1 . 4 3 14 21 Projectile 18 | . 11 . . . . . . . 5 1 . . . . . 1 AOE 5 | . . 5 . . . . . . . . . . . . . . Terrain Rammed . | . . . . . . . . . . . . . . . . . Walls Destroyed . | . . . . . . . . . . . . . . . . . Machines Disabled . | . . . . . . . . . . . . . . . . . Actions | -11 -10 -10 -7 -7 -5 -5 -4 -4 -4 -4 -4 -4 -3 -3 -2 -1 --------- Run | Yrd Mat Sub Rec Scr Fac Ext Fac Was Fac Upp Upp War Pro Res Res Acc Total 11806 | 137 442 614 425 2963 278 817 155 82 448 623 677 771 1043 654 669 1008 Wait 2856 | . 253 9 1 1051 34 185 . . . 38 243 32 503 230 105 172 Move 8509 | 109 164 536 408 1895 224 563 150 80 409 582 429 728 510 407 535 780 Hop 43 | . . . . . 8 20 . . 4 . . . . 8 1 2 Pick Up 32 | 8 1 1 1 4 2 5 . . 2 1 . 1 2 1 2 1 Fast Attach 52 | 6 1 5 3 4 1 4 3 2 5 . 3 2 4 3 3 3 Attach 35 | 3 . 6 5 1 2 1 2 . 1 1 . . 5 . 2 6 Detach 37 | 2 . 9 5 2 . 1 . . 3 1 1 3 4 1 2 3 Swap . | . . . . . . . . . . . . . . . . . Drop 25 | . . 2 . 4 . 6 . . . . . 5 1 . 2 5 Fire 90 | 9 23 42 . . . . . . 8 . . . 2 . . 6 Melee 73 | . . 4 . 2 7 2 . . . . 1 . 6 4 17 30 Ram . | . . . . . . . . . . . . . . . . . Kick . | . . . . . . . . . . . . . . . . . Crush . | . . . . . . . . . . . . . . . . . Escape Stasis 45 | . . . . . . 30 . . 15 . . . . . . . Rewire 2 | . . . 2 . . . . . . . . . . . . . Trap . | . . . . . . . . . . . . . . . . . Miscellaneous 7 | . . . . . . . . . 1 . . . 6 . . . Route ------- -11/Scrapyard -10/Materials -10/Subcaves (discovered 2 exits: [*Mat] / *Rec) -7/Recycling (discovered 2 exits: *Fac / *Scr) -7/Scraptown (discovered 2 exits: *Fac x2) -5/Factory -5/Extension (discovered 2 exits: *Fac / [*Cet]) -4/Factory -4/Waste -4/Factory -4/Upper Caves -4/Upper Caves (discovered 2 exits: *Res / *War) -4/Warlord -3/Proximity Caves -3/Research -2/Research (discovered 2 exits: *Acc / Qua) -1/Access History --------- Turn | Location | Event 7 | -11/Scrapyard | Discovered new exit (range 14) 221 | -11/Scrapyard | Entered Materials 317 | -10/Materials | Build established: Mutant 797 | -10/Materials | Discovered new exit (range 9) 811 | -10/Materials | Entered Subcaves 975 | -10/Subcaves | Lost 4 parts (1p1n1u1w) 1009 | -10/Subcaves | Visited 4L-MR0's lab 1020 | -10/Subcaves | Found Prototype Device 1020 | -10/Subcaves | Identified Sfc. Transmogrifier 1106 | -10/Subcaves | Discovered new exit (range 8) 1209 | -10/Subcaves | Found Tower Shield 1520 | -10/Subcaves | Discovered new exit (range 9) 1521 | -10/Subcaves | Crushed by falling debris 1524 | -10/Subcaves | Core integrity fell below 50% 1526 | -10/Subcaves | Entered Recycling 1527 | -7/Recycling | Met a Zionite searching for Scraptown 1527 | -7/Recycling | Attached Tower Shield, gained temporary slots: Power, Propulsion x2, Utility x2, Weapon x2 1552 | -7/Recycling | Lost 3 parts (1n1u1w) 1593 | -7/Recycling | Core integrity fell below 20% 1621 | -7/Recycling | Discovered new exit (range 6) 1700 | -7/Recycling | Scanned before Scraplab entrance 1706 | -7/Recycling | Entered Scraplab 1717 | -7/Recycling | Discovered new exit (range 3) 1718 | -7/Recycling | Entered Scraptown 1720 | -7/Scraptown | System corruption cleaned by C-Scrubber 1761 | -7/Scraptown | Learned location of Extension (-5) 1898 | -7/Scraptown | Discovered new exit (range 3) 2060 | -7/Scraptown | Visited UFD Registry 2065 | -7/Scraptown | Visited Fellowship of the Rings 2076 | -7/Scraptown | Visited Cyclists 2089 | -7/Scraptown | Visited Symbiants 2097 | -7/Scraptown | Visited Spacefarers 2125 | -7/Scraptown | Visited The Evicted 2134 | -7/Scraptown | Visited Shadow of the Wyrm 2145 | -7/Scraptown | Visited Supply Room 2170 | -7/Scraptown | Registered with UFD as "Flakguard" 2181 | -7/Scraptown | Entered Cyclist Reading Room 2202 | -7/Scraptown | Visited Chapter 10 2214 | -7/Scraptown | Visited Curators Association 2229 | -7/Scraptown | Visited Abandonware Association 2234 | -7/Scraptown | Learned abandonware demo "HACKBUD.EXE" 2234 | -7/Scraptown | Learned abandonware demo "KABOOM.EXE" 2706 | -7/Scraptown | Visited Scrap Suit Storage 3237 | -7/Scraptown | Visited Infowarlord's Domain 3239 | -7/Scraptown | Found Exp. Terrain Scan Processor 3326 | -7/Scraptown | Visited Junk Repository 3334 | -7/Scraptown | Visited Modified Component R&D 3346 | -7/Scraptown | Discovered new exit (range 11) 3366 | -7/Scraptown | Met Optimus 3366 | -7/Scraptown | Accepted into 0bPrime 3425 | -7/Scraptown | Civil war broke out across Scraptown 3475 | -7/Scraptown | Entered Factory 3475 | -5/Factory | Evolved 10 slots: Propulsion x3, Utility x7 3492 | -5/Factory | Lost 6 allies 3567 | -5/Factory | Discovered new exit (range 10) 3614 | -5/Factory | Identified exit to Extension 3614 | -5/Factory | Entered Extension 3649 | -5/Extension | Rescued A7 3742 | -5/Extension | Rescued a captive Derelict 3743 | -5/Extension | Rescued a captive Derelict 3746 | -5/Extension | Found Prototype Protection 3749 | -5/Extension | Identified Med. Regenerative Plating 3844 | -5/Extension | Rescued a captive Derelict 3846 | -5/Extension | Rescued a captive Derelict 3879 | -5/Extension | Spotted B-75 Beast 3902 | -5/Extension | Build established: Scout 3945 | -5/Extension | Spotted B-75 Beast 3980 | -5/Extension | Lost 5 allies 4068 | -5/Extension | Discovered new exit (range 22) 4069 | -5/Extension | Discovered new exit (range 20) 4078 | -5/Extension | Identified exit to Factory 4079 | -5/Extension | Entered Factory 4079 | -4/Factory | Evolved 2 slots: Propulsion x1, Utility x1 4145 | -4/Factory | Sucked down chute 4145 | -4/Factory | Entered Waste 4146 | -4/Waste | Met a frightened Derelict 4150 | -4/Waste | Spotted C-40 Crusher 4152 | -4/Waste | Spotted C-40 Crusher 4160 | -4/Waste | EMP discharged 4160 | -4/Waste | System corruption reached 10% 4167 | -4/Waste | Spotted C-40 Crusher 4168 | -4/Waste | Spotted C-40 Crusher 4168 | -4/Waste | Spotted C-40 Crusher 4169 | -4/Waste | Discovered new exit (range 22) 4172 | -4/Waste | Spotted C-40 Crusher 4176 | -4/Waste | Identified exit to Factory 4176 | -4/Waste | Entered Factory 4204 | -4/Factory | Loaded intel: 8 recycling unit locations 4234 | -4/Factory | Discovered new exit (range 13) 4362 | -4/Factory | Identified exit to Upper Caves 4363 | -4/Factory | Entered Upper Caves 4390 | -4/Upper Caves | Learned location of Armory (-4) 4392 | -4/Upper Caves | Learned Research garrison access intel 4437 | -4/Upper Caves | Spotted B-86 Titan 4480 | -4/Upper Caves | Attacked by a delusional Derelict stockpiling parts 4579 | -4/Upper Caves | Discovered new exit (range 15) 4596 | -4/Upper Caves | Identified exit to Upper Caves 4602 | -4/Upper Caves | Entered another Upper Caves area 4635 | -4/Upper Caves | Discovered new exit (range 15) 4676 | -4/Upper Caves | Identified exit to Research 4907 | -4/Upper Caves | Spotted B-86 Titan 4993 | -4/Upper Caves | Discovered new exit (range 15) 4999 | -4/Upper Caves | Attracted the attention of an 0b10 checkpoint 4999 | -4/Upper Caves | Identified exit to Warlord 4999 | -4/Upper Caves | Entered Warlord 5046 | -4/Warlord | Discovered new exit (range 18) 5055 | -4/Warlord | System corruption cleaned by Quarantine Array 5111 | -4/Warlord | Found Prototype Device 5111 | -4/Warlord | Identified Minesniffer Drone Bay 5184 | -4/Warlord | Visited the Vortex Lab 5186 | -4/Warlord | Found Prototype Energy Gun 5186 | -4/Warlord | Identified Vortex Rail 5190 | -4/Warlord | Found Vortex Rail 5193 | -4/Warlord | Warlord's base attacked by MAIN.C 5253 | -4/Warlord | Rebuked by Warlord 5278 | -4/Warlord | Opened side exit 5287 | -4/Warlord | Identified exit to Proximity Caves 5287 | -4/Warlord | Entered Proximity Caves 5330 | -3/Proximity Caves | Lost 3 parts (1p2u) 5947 | -3/Proximity Caves | Found Alien Artifact 5947 | -3/Proximity Caves | Identified Dimensional Node Initializer 5947 | -3/Proximity Caves | Initialized slip node 5994 | -3/Proximity Caves | Discovered exit to Research (range 14) 6011 | -3/Proximity Caves | Entered Research 6011 | -3/Research | Evolved 2 slots: Power x1, Propulsion x1 6012 | -3/Research | Loaded intel: 4 garrison access locations 6283 | -3/Research | Build established: Derelict-Scout 6372 | -3/Research | Discovered new exit (range 20) 6412 | -3/Research | Identified exit to Research 6412 | -3/Research | Entered another Research area 6412 | -2/Research | Evolved 2 slots: Propulsion x1, Utility x1 6413 | -2/Research | Identified exit to Quarantine 6477 | -2/Research | Central database locked down 6698 | -2/Research | Found Prototype Processor 6698 | -2/Research | Identified Exp. Core Analyzer 6719 | -2/Research | Discovered new exit (range 12) 6722 | -2/Research | Identified exit to Access 6748 | -2/Research | Entered Access 6748 | -1/Access | Evolved 2 slots: Propulsion x1, Utility x1 7101 | -1/Access | Spotted B-99 Colossus 7165 | -1/Access | Spotted B-99 Colossus 7238 | -1/Access | Core integrity fell below 50% 7274 | -1/Access | Core integrity fell below 20% 7289 | -1/Access | Lost 15 parts (7n6u2w) 7307 | -1/Access | Destroyed by H-88 Terminator with Heavy Machine Gun Last Messages --------------- 07267_ Slug penetrates Wall. 07270_ Penetrated by Slug. 07270_ Slug penetrates Wall. 07273_ Slug penetrates W-44 Eye. 07273_ Slug penetrates Wall. 07274_ Penetrated by Slug. 07276_ >> Machine Analyzer network decryption results: 07276_ Scanalyzer x1 07276_ Terminal x1 07276_ Slug penetrates Wall. 07279_ Slug penetrates Door. 07280_ Knocked back. 07280_ >> Machine Analyzer network decryption results: 07280_ Terminal x2 07304_ Terminal disabled. 07306_ System corrupted: Matter fused (-5). 07307_ Penetrated by Slug. [Achievement: This Is Interesting...] Map ----- +----------------------------------------------------+ | ??????????????????????????????????# ?????# #? | | ??????????????????????????????????# ?????#% #? | | ????????????????????????########### #####" ! ""#? | | ????????????????????????# + ""#? | | ????????????????????????# ## [ ""#? | | ????????????????????????# ## T#? | | ????????????????????????# ## ""#? | | ????????????????????????# " ## ! ""#? | | ????????????????????????# """ ##### ""#? | | ????????????????????????# """ #???# #? | | ????????????????????????# " #???#= #? | | ????????????????????????# ########+###? | | ????????????????????????# | | ????????????????????????# ### | | ????????????????????? " h #??????????? | | ????????????????????? """ #??????????? | | ?????????????????????? """ #??????????? | | ????????????????????? " #??????????? | | ????????????????????? #??????????? | | ????????????????????????# #??????????? | | ??????????""?""?????????# p #??????????? | | ??????????""R""?????????# " #??????????? | | ???????????""""?????????# """ #??????????? | | ????????????????????????# """ #??????????? | | ????????????????????????# " #??????????? | | ????????????????????????#@ #??????????? | | ????????????????????????# #??????????? | | ????????????????????????# #??????????? | | ????????????????????????# " #??????????? | | ????????????????????????# "" #??????????? | | ????????????????????????# T" #???? #????? | | ????????????????????????# "" #??? #????? | | ????????????????????????# "" ### #????? | | ????????????????????????# #????? | | ????????????????????????# #????? | | ????????????????????????# #????? | | ????????????????????????###########+#########????? | | ????????????????????????????????? ???????????? | | ??????????????????????T"???????# ?????????? | | ???????????????????????"???????# #????????? | | ???????????????????????????????# " #????????? | | ???????????????????????????????# """ #????????? | | ???????????????????????????????# """#????????? | | ???????????????????????????????# " #????????? | | ???????????????????????????????# ?#????????? | | ???????????????????????????????# ??????????? | | ???????????????????????????????########??????????? | | ?????????????????????????????????????????????????? | | ?????????????????????????????????????????????????? | | ?????????????????????????????????????????????????? | +----------------------------------------------------+ Best States ------------- Heat Dissipation 83 Energy Generation 25 Energy Capacity 350 Matter Stores 300 Matter Capacity 300 Sight Range 22 Robot Scan Range 18 Terrain Scan Range 20 Terrain Scan Density 1010 Armor Coverage 2000 Phase Shifting 15 Evasion (%) 78 Recoil Reduction 2 Item Schematics ----------------- None Robot Schematics ------------------ None Fabricated ------------ Nothing Repaired ---------- Nothing Studied --------- Nuclear Pulse Thruster | -4/Factory | Hacked Field Propulsion Array | -4/Factory | Hacked Alien Tech Used ----------------- Dimensional Node Initializer Achievements -------------- Bob, First Of His Name Civilization 2243 Deadly Force Link The Feds Mistaken Identity Origins Prison Break This Is Interesting... Uncivil War You May Approach The Wall Challenges ------------ None Game ------ Seed SeismicStructuralBuckler Manual? 0 Play Time 03:20:37 Cumulative 52.4 hours Start 2026.07.04 @ 22:40:43 End 2026.07.05 @ 23:46:42 Sessions 3 Manual Loads 0 Difficulty Rogue Special Mode None Game No. 52 Rogue 52 Adventurer 0 Explorer 0 Win Type - Total 0 Types 0/0/0/0/0/0/0/0/0/0 Lore% 35 Gallery% 31 Achievement% 28 Wizard Run 0 Options --------- Layout 1 ASCII 0 Keyboard 1 Movement Numpad Keybinds 0 Fullscreen 1 Font 24/Smallcaps Map View 50x35 Zoom Use 0% Tactical HUD 1 Map Filters NONE Filters NONE Steam 1 RUN: 7f126882-c60b-4e32-ac85-a40d495b2c4e